fUSD/lending_fUSD_20241207
["ID","MTS","AMOUNT","RATE_DAILY","PERIOD"]
[344605293,1733604655143,-807.32,0.00015068,2]
[344605295,1733604655153,-807.32,0.00015068,2]
[344605297,1733604655162,-500.0,0.00015068,2]
[344605299,1733604655172,-807.32,0.00015068,2]
[344605301,1733604655181,-500.0,0.00015068,2]
[344605303,1733604655191,-807.32,0.00015068,2]
[344605305,1733604655201,-500.0,0.00015068,2]
[344605307,1733604655211,-500.0,0.00015068,2]
[344605309,1733604655220,-500.0,0.00015068,2]
[344605311,1733604655230,-500.0,0.00015068,2]
[344605313,1733604655239,-790.02,0.00015068,2]
[344605315,1733604655249,-500.0,0.00015068,2]
[344605317,1733604655258,-790.02,0.00015068,2]
[344605319,1733604655268,-500.0,0.00015068,2]
[344605321,1733604655278,-790.02,0.00015068,2]
[344605323,1733604655288,-790.02,0.00015068,2]
[344605325,1733604655297,-500.0,0.00015068,2]
[344605327,1733604655307,-790.02,0.00015068,2]
[344605329,1733604655317,-790.02,0.00015068,2]
[344605331,1733604655327,-790.02,0.00015068,2]
[344605333,1733604655337,-1012.72,0.00015068,2]
[344605335,1733604655347,-1012.72,0.00015068,2]
[344605337,1733604655356,-204.3489391,0.00015069,2]
[344605339,1733604655366,-430.40386068,0.00015069,2]
[344605341,1733604655376,-500.0,0.00015069,2]
[344605343,1733604655385,-500.0,0.00015073,2]
[344605345,1733604655396,-500.0,0.00015073,2]
[344605347,1733604655405,-501.02234171,0.00015073,2]
[344605368,1733604655602,-500.0,0.00015073,2]
[344605370,1733604655612,-517.0,0.0001509,2]
[344605373,1733604655622,-264629.50836425,0.00015096,3]
[344605375,1733604655632,-377.72487121,0.00015096,3]
[344605377,1733604655644,-1245.0,0.00015096,2]
[344605379,1733604655657,-938.0,0.00015096,2]
[344605380,1733604655667,-244.0,0.00015096,2]
[344605383,1733604655677,-1000.0,0.00015099,2]
[344605385,1733604655687,-2956.62,0.00015099,2]
[344605387,1733604655697,-1133.69,0.00015099,2]
[344605389,1733604655707,-2128.53,0.00015099,2]
[344605391,1733604655716,-500.0,0.00015099,2]
[344605393,1733604655726,-3289.1,0.00015099,2]
[344605395,1733604655736,-4243.12,0.00015099,2]
[344605397,1733604655746,-500.0,0.00015099,2]
[344605399,1733604655756,-2332.16,0.00015099,2]
[344605401,1733604655766,-5330.54,0.00015099,2]
[344605403,1733604655779,-500.0,0.00015099,2]
[344605405,1733604655789,-4405.59,0.00015099,2]
[344605407,1733604655798,-1493.4,0.00015099,2]
[344605409,1733604655808,-500.0,0.00015099,2]
[344605411,1733604655818,-2781.09,0.00015099,2]
[344605413,1733604655829,-500.0,0.00015099,2]
[344605415,1733604655839,-1050.23,0.00015099,2]
[344605417,1733604655851,-998.49,0.00015099,2]
[344605419,1733604655862,-9177.02,0.00015099,2]
[344605421,1733604655872,-500.0,0.00015099,2]
[344605423,1733604655881,-807.32,0.00015099,2]
[344605425,1733604655893,-8500.0,0.000151,2]
[344605427,1733604655903,-200.0,0.00015104,2]
[344605429,1733604655914,-200.01,0.00015105,2]
[344605431,1733604655924,-500.0,0.00015125,2]
[344605433,1733604655934,-619.34,0.00015125,2]
[344605436,1733604655945,-548.0,0.00015125,2]
[344605437,1733604655955,-1456.82,0.00015125,2]
[344605439,1733604655965,-500.0,0.00015125,2]
[344605441,1733604655975,-500.0,0.00015125,2]
[344605443,1733604655985,-604.79,0.00015125,2]
[344605445,1733604655995,-500.0,0.00015125,2]
[344605448,1733604656006,-500.0,0.00015125,2]
[344605450,1733604656016,-500.0,0.00015125,2]
[344605452,1733604656026,-559.68,0.00015125,2]
[344605453,1733604656035,-280.51,0.00015125,2]
[344605455,1733604656045,-500.0,0.00015125,2]
[344605458,1733604656055,-500.0,0.00015125,2]
[344605460,1733604656065,-500.0,0.00015125,2]
[344605462,1733604656075,-500.0,0.00015125,2]
[344605464,1733604656084,-519.39644093,0.00015125,2]
[344605466,1733604656094,-542.18,0.00015125,2]
[344605468,1733604656104,-500.0,0.00015125,2]
[344605470,1733604656113,-567.4,0.00015125,2]
[344605472,1733604656123,-500.0,0.00015125,2]
[344605474,1733604656133,-2087.49,0.00015125,2]
[344605476,1733604656145,-1000.0,0.00015126,2]
[344605478,1733604656155,-3513.83,0.00015126,2]
[344605480,1733604656165,-500.0,0.00015126,2]
[344605482,1733604656175,-500.0,0.00015126,2]
[344605484,1733604656185,-5065.43,0.00015126,2]
[344605486,1733604656194,-835.74,0.00015126,2]
[344605488,1733604656204,-5330.54,0.00015126,2]
[344605490,1733604656214,-4405.59,0.00015126,2]
[344605492,1733604656223,-500.0,0.00015126,2]
[344605494,1733604656233,-500.0,0.00015126,2]
[344605496,1733604656242,-500.0,0.00015126,2]
[344605497,1733604656252,-3981.47,0.00015126,2]
[344605499,1733604656262,-1050.23,0.00015126,2]
[344605502,1733604656272,-500.0,0.00015126,2]
[344605503,1733604656281,-3552.54,0.00015126,2]
[344605505,1733604656290,-500.0,0.00015126,2]
[344605508,1733604656300,-500.0,0.00015126,2]
[344605509,1733604656309,-790.02,0.00015126,2]
[344605512,1733604656319,-506.81310381,0.00015127,2]
[344605513,1733604656329,-500.0,0.00015127,2]
[344605516,1733604656339,-227.76,0.00015127,2]
[344605518,1733604656349,-500.0,0.00015127,2]
[344605520,1733604656359,-1533.72,0.00015127,2]
[344605522,1733604656369,-2740.12,0.00015127,2]
[344605524,1733604656379,-500.0,0.00015127,2]
[344605526,1733604656388,-735.85,0.00015127,2]
[344605528,1733604656399,-500.0,0.00015127,2]
[344605530,1733604656408,-1840.76,0.00015127,2]
[344605532,1733604656418,-1041.66,0.00015127,2]
[344605534,1733604656427,-500.0,0.00015127,2]
[344605536,1733604656436,-500.0,0.00015127,2]
[344605538,1733604656446,-500.0,0.00015127,2]
[344605540,1733604656455,-500.0,0.00015127,2]
[344605542,1733604656465,-500.0,0.00015127,2]
[344605544,1733604656475,-3829.15,0.00015127,2]
[344605546,1733604656484,-1553.56,0.00015127,2]
[344605548,1733604656493,-500.0,0.00015127,2]
[344605550,1733604656503,-1308.3,0.00015127,2]
[344605552,1733604656512,-500.0,0.00015127,2]
[344605554,1733604656521,-500.0,0.00015127,2]
[344605556,1733604656530,-3483.48,0.00015127,2]
[344605558,1733604656539,-500.0,0.00015127,2]
[344605560,1733604656548,-500.0,0.00015127,2]
[344605562,1733604656558,-156.9647986,0.00015127,2]
[344605564,1733604656567,-391.31,0.00015127,2]
[344605566,1733604656576,-619.34,0.00015127,2]
[344605568,1733604656586,-500.0,0.00015127,2]
[344605570,1733604656595,-500.0,0.00015127,2]
[344605572,1733604656605,-548.0,0.00015127,2]
[344605574,1733604656615,-1456.82,0.00015127,2]
[344605576,1733604656624,-500.0,0.00015127,2]
[344605578,1733604656633,-500.0,0.00015127,2]
[344605580,1733604656644,-500.0,0.00015127,2]
[344605582,1733604656654,-458.49756195,0.00015127,2]
[344605583,1733604656664,-620.23,0.00015127,2]
[344605584,1733604656674,-4270.63,0.00015127,2]
[344605585,1733604656684,-500.0,0.00015127,2]
[344605586,1733604656694,-3055.58,0.00015127,2]
[344605587,1733604656703,-218.55911857,0.00015127,2]
[344605588,1733604656713,-4435.24,0.00015127,2]
[344605589,1733604656723,-500.0,0.00015127,2]
[344605590,1733604656733,-500.0,0.00015127,2]
[344605592,1733604656742,-2956.62,0.00015127,2]
[344605594,1733604656752,-500.0,0.00015127,2]
[344605597,1733604656762,-500.0,0.00015127,2]
[344605598,1733604656775,-656.19,0.00015127,2]
[344605601,1733604656785,-1133.69,0.00015127,2]
[344605603,1733604656795,-500.0,0.00015127,2]
[344605605,1733604656804,-500.0,0.00015127,2]
[344605607,1733604656814,-875.0,0.00015127,2]
[344605608,1733604656824,-2128.53,0.00015127,2]
[344605610,1733604656833,-2178.6,0.00015127,2]
[344605612,1733604656844,-500.0,0.00015127,2]
[344605615,1733604656854,-500.0,0.00015127,2]
[344605617,1733604656864,-2631.81,0.00015127,2]
[344605619,1733604656874,-500.0,0.00015127,2]
[344605621,1733604656884,-949.05,0.00015127,2]
[344605623,1733604656894,-3289.1,0.00015127,2]
[344605625,1733604656904,-336.62,0.00015127,2]
[344605626,1733604656914,-604.79,0.00015127,2]
[344605628,1733604656924,-4243.12,0.00015127,2]
[344605631,1733604656934,-2965.15,0.00015127,2]
[344605633,1733604656944,-500.0,0.00015127,2]
[344605634,1733604656955,-500.0,0.00015127,2]
[344605637,1733604656965,-500.0,0.00015127,2]
[344605638,1733604656975,-500.0,0.00015127,2]
[344605641,1733604656985,-591.71,0.00015127,2]
[344605642,1733604656995,-576.95,0.00015127,2]
[344605645,1733604657004,-2332.16,0.00015127,2]
[344605646,1733604657015,-559.68,0.00015127,2]
[344605649,1733604657025,-197.72,0.00015127,2]
[344605651,1733604657035,-1493.4,0.00015127,2]
[344605653,1733604657045,-500.0,0.00015127,2]
[344605655,1733604657054,-210.95809264,0.00015127,2]
[344605657,1733604657063,-2781.09,0.00015127,2]
[344605658,1733604657074,-601.08,0.00015127,2]
[344605660,1733604657084,-500.0,0.00015127,2]
[344605662,1733604657093,-183.62919797,0.00015127,2]
[344605664,1733604657103,-162.47,0.00015127,2]
[344605666,1733604657113,-500.0,0.00015127,2]
[344605668,1733604657123,-542.18,0.00015127,2]
[344605671,1733604657132,-500.0,0.00015127,2]
[344605673,1733604657144,-567.4,0.00015127,2]
[344605675,1733604657154,-998.49,0.00015127,2]
[344605677,1733604657164,-758.11,0.00015127,2]
[344605679,1733604657173,-9177.02,0.00015127,2]
[344605681,1733604657183,-500.0,0.00015127,2]
[344605683,1733604657193,-2087.49,0.00015127,2]
[344605685,1733604657202,-500.0,0.00015127,2]
[344605686,1733604657211,-807.32,0.00015127,2]
[344605688,1733604657221,-500.0,0.00015127,2]
[344605691,1733604657232,-790.02,0.00015127,2]
[344605693,1733604657242,-469.84,0.00015128,2]
[344605695,1733604657252,-500.0,0.00015128,2]
[344605697,1733604657261,-616.96,0.00015128,2]
[344605699,1733604657270,-500.0,0.00015128,2]
[344605701,1733604657279,-1000.0,0.00015128,2]
[344605703,1733604657289,-2740.12,0.00015128,2]
[344605705,1733604657298,-258.09,0.00015128,2]
[344605707,1733604657308,-3829.15,0.00015128,2]
[344605708,1733604657317,-1553.56,0.00015128,2]
[344605711,1733604657327,-510.13,0.00015128,2]
[344605712,1733604657336,-500.0,0.00015128,2]
[344605715,1733604657346,-907.57,0.00015128,2]
[344605717,1733604657355,-1308.3,0.00015128,2]
[344605719,1733604657365,-1667.32,0.00015128,2]
[344605721,1733604657375,-500.0,0.00015128,2]
[344605723,1733604657384,-500.0,0.00015128,2]
[344605725,1733604657395,-500.0,0.00015128,2]
[344605727,1733604657404,-3483.48,0.00015128,2]
[344605728,1733604657413,-500.0,0.00015128,2]
[344605731,1733604657423,-734.35,0.00015128,2]
[344605732,1733604657432,-619.34,0.00015128,2]
[344605734,1733604657442,-500.0,0.00015128,2]
[344605736,1733604657451,-983.52,0.00015128,2]
[344605739,1733604657461,-548.0,0.00015128,2]
[344605740,1733604657471,-1316.57,0.00015128,2]
[344605743,1733604657481,-1456.82,0.00015128,2]
[344605745,1733604657490,-500.0,0.00015128,2]
[344605746,1733604657500,-500.0,0.00015128,2]
[344605749,1733604657510,-500.0,0.00015128,2]
[344605751,1733604657519,-500.0,0.00015128,2]
[344605753,1733604657529,-620.23,0.00015128,2]
[344605754,1733604657539,-4270.63,0.00015128,2]
[344605757,1733604657549,-500.0,0.00015128,2]
[344605759,1733604657558,-3055.58,0.00015128,2]
[344605761,1733604657567,-4435.24,0.00015128,2]
[344605763,1733604657576,-3513.83,0.00015128,2]
[344605764,1733604657586,-3513.83,0.00015128,2]
[344605766,1733604657596,-500.0,0.00015128,2]
[344605769,1733604657605,-500.0,0.00015128,2]
[344605771,1733604657615,-2956.62,0.00015128,2]
[344605773,1733604657625,-500.0,0.00015128,2]
[344605775,1733604657634,-500.0,0.00015128,2]
[344605776,1733604657644,-1133.69,0.00015128,2]
[344605779,1733604657654,-500.0,0.00015128,2]
[344605781,1733604657664,-187.66506827,0.00015128,2]
[344605783,1733604657675,-500.0,0.00015128,2]
[344605784,1733604657684,-500.0,0.00015128,2]
[344605786,1733604657694,-875.0,0.00015128,2]
[344605788,1733604657704,-2128.53,0.00015128,2]
[344605791,1733604657713,-500.0,0.00015128,2]
[344605792,1733604657722,-500.0,0.00015128,2]
[344605795,1733604657732,-500.0,0.00015128,2]
[344605797,1733604657742,-2631.81,0.00015128,2]
[344605798,1733604657751,-160.50449233,0.00015128,2]
[344605800,1733604657760,-949.05,0.00015128,2]
[344605802,1733604657771,-3289.1,0.00015128,2]
[344605805,1733604657784,-604.79,0.00015128,2]
[344605807,1733604657794,-5065.43,0.00015128,2]
[344605809,1733604657804,-5065.43,0.00015128,2]
[344605811,1733604657814,-4243.12,0.00015128,2]
[344605813,1733604657824,-2965.15,0.00015128,2]
[344605815,1733604657834,-500.0,0.00015128,2]
[344605817,1733604657844,-500.0,0.00015128,2]
[344605818,1733604657854,-835.74,0.00015128,2]
[344605820,1733604657863,-835.74,0.00015128,2]
[344605823,1733604657873,-500.0,0.00015128,2]
[344605824,1733604657883,-500.0,0.00015128,2]
[344605827,1733604657894,-591.71,0.00015128,2]
[344605829,1733604657904,-2332.16,0.00015128,2]
[344605831,1733604657914,-559.68,0.00015128,2]
[344605833,1733604657924,-5330.54,0.00015128,2]
[344605835,1733604657933,-4405.59,0.00015128,2]
[344605837,1733604657942,-1493.4,0.00015128,2]
[344605839,1733604657951,-500.0,0.00015128,2]
[344605841,1733604657961,-500.0,0.00015128,2]
[344605843,1733604657970,-500.0,0.00015128,2]
[344605845,1733604657980,-500.0,0.00015128,2]
[344605847,1733604657989,-500.0,0.00015128,2]
[344605849,1733604657999,-2781.09,0.00015128,2]
[344605851,1733604658008,-500.0,0.00015128,2]
[344605853,1733604658018,-500.0,0.00015128,2]
[344605855,1733604658027,-3981.47,0.00015128,2]
[344605857,1733604658037,-3981.47,0.00015128,2]
[344605863,1733604658089,-1050.23,0.00015128,2]
[344605865,1733604658098,-542.18,0.00015128,2]
[344605867,1733604658108,-347.19,0.00015128,2]
[344605869,1733604658119,-500.0,0.00015128,2]
[344605871,1733604658128,-567.4,0.00015128,2]
[344605872,1733604658138,-998.49,0.00015128,2]
[344605873,1733604658148,-9177.02,0.00015128,2]
[344605874,1733604658158,-500.0,0.00015128,2]
[344605875,1733604658168,-2087.49,0.00015128,2]
[344605876,1733604658177,-3552.54,0.00015128,2]
[344605877,1733604658187,-3552.54,0.00015128,2]
[344605878,1733604658196,-500.0,0.00015128,2]
[344605880,1733604658205,-577.10553952,0.00015128,2]
[344605882,1733604658215,-807.32,0.00015128,2]
[344605884,1733604658224,-500.0,0.00015128,2]
[344605886,1733604658234,-790.02,0.00015128,2]
[344605888,1733604658243,-500.0,0.00015129,2]
[344605890,1733604658252,-500.0,0.00015129,2]
[344605892,1733604658261,-500.0,0.00015129,2]
[344605894,1733604658271,-500.0,0.00015129,2]
[344605896,1733604658280,-500.0,0.00015129,2]
[344605898,1733604658289,-500.0,0.00015129,2]
[344605900,1733604658299,-1533.72,0.00015129,2]
[344605902,1733604658308,-1533.72,0.00015129,2]
[344605904,1733604658317,-2740.12,0.00015129,2]
[344605906,1733604658326,-2740.12,0.00015129,2]
[344605908,1733604658335,-500.0,0.00015129,2]
[344605910,1733604658344,-500.0,0.00015129,2]
[344605912,1733604658354,-735.85,0.00015129,2]
[344605914,1733604658364,-735.85,0.00015129,2]
[344605916,1733604658373,-500.0,0.00015129,2]
[344605918,1733604658383,-500.0,0.00015129,2]
[344605920,1733604658392,-1840.76,0.00015129,2]
[344605922,1733604658402,-1840.76,0.00015129,2]
[344605923,1733604658412,-1041.66,0.00015129,2]
[344605926,1733604658423,-1041.66,0.00015129,2]
[344605928,1733604658433,-500.0,0.00015129,2]
[344605929,1733604658441,-500.0,0.00015129,2]
[344605931,1733604658450,-500.0,0.00015129,2]
[344605933,1733604658460,-500.0,0.00015129,2]
[344605935,1733604658469,-500.0,0.00015129,2]
[344605937,1733604658479,-500.0,0.00015129,2]
[344605939,1733604658488,-500.0,0.00015129,2]
[344605942,1733604658498,-500.0,0.00015129,2]
[344605944,1733604658508,-500.0,0.00015129,2]
[344605946,1733604658517,-500.0,0.00015129,2]
[344605948,1733604658526,-3829.15,0.00015129,2]
[344605949,1733604658536,-3829.15,0.00015129,2]
[344605951,1733604658545,-1553.56,0.00015129,2]
[344605953,1733604658554,-1553.56,0.00015129,2]
[344605955,1733604658563,-510.13,0.00015129,2]
[344605957,1733604658572,-510.13,0.00015129,2]
[344605959,1733604658582,-500.0,0.00015129,2]
[344605961,1733604658591,-500.0,0.00015129,2]
[344605963,1733604658599,-907.57,0.00015129,2]
[344605965,1733604658609,-907.57,0.00015129,2]
[344605967,1733604658618,-1308.3,0.00015129,2]
[344605969,1733604658627,-1308.3,0.00015129,2]
[344605971,1733604658637,-1667.32,0.00015129,2]
[344605973,1733604658648,-1667.32,0.00015129,2]
[344605975,1733604658657,-500.0,0.00015129,2]
[344605977,1733604658667,-500.0,0.00015129,2]
[344605979,1733604658677,-500.0,0.00015129,2]
[344605981,1733604658687,-500.0,0.00015129,2]
[344605983,1733604658697,-500.0,0.00015129,2]
[344605985,1733604658707,-341.13688133,0.00015129,2]
[344605987,1733604658716,-500.0,0.00015129,2]
[344605989,1733604658725,-494.99,0.00015129,2]
[344605991,1733604658735,-3483.48,0.00015129,2]
[344605993,1733604658744,-3483.48,0.00015129,2]
[344605995,1733604658753,-500.0,0.00015129,2]
[344605997,1733604658763,-500.0,0.00015129,2]
[344605999,1733604658774,-500.0,0.00015129,2]
[344606001,1733604658784,-500.0,0.00015129,2]
[344606003,1733604658793,-734.35,0.00015129,2]
[344606005,1733604658803,-734.35,0.00015129,2]
[344606007,1733604658812,-619.34,0.00015129,2]
[344606009,1733604658823,-500.0,0.00015129,2]
[344606011,1733604658833,-500.0,0.00015129,2]
[344606013,1733604658842,-563.11202142,0.00015129,2]
[344606015,1733604658852,-983.52,0.00015129,2]
[344606017,1733604658861,-983.52,0.00015129,2]
[344606019,1733604658872,-548.0,0.00015129,2]
[344606021,1733604658881,-1316.57,0.00015129,2]
[344606023,1733604658891,-1316.57,0.00015129,2]
[344606025,1733604658905,-1456.82,0.00015129,2]
[344606027,1733604658915,-500.0,0.00015129,2]
[344606029,1733604658924,-500.0,0.00015129,2]
[344606031,1733604658933,-500.0,0.00015129,2]
[344606033,1733604658943,-500.0,0.00015129,2]
[344606035,1733604658954,-500.0,0.00015129,2]
[344606037,1733604658964,-500.0,0.00015129,2]
[344606039,1733604658974,-500.0,0.00015129,2]
[344606041,1733604658983,-500.0,0.00015129,2]
[344606043,1733604658992,-500.0,0.00015129,2]
[344606045,1733604659001,-500.0,0.00015129,2]
[344606047,1733604659011,-620.23,0.00015129,2]
[344606049,1733604659020,-620.23,0.00015129,2]
[344606051,1733604659030,-4270.63,0.00015129,2]
[344606053,1733604659039,-4270.63,0.00015129,2]
[344606055,1733604659050,-500.0,0.00015129,2]
[344606057,1733604659059,-3055.58,0.00015129,2]
[344606059,1733604659068,-3055.58,0.00015129,2]
[344606061,1733604659077,-4435.24,0.00015129,2]
[344606062,1733604659087,-4435.24,0.00015129,2]
[344606064,1733604659096,-3513.83,0.00015129,2]
[344606066,1733604659106,-500.0,0.00015129,2]
[344606068,1733604659115,-500.0,0.00015129,2]
[344606070,1733604659125,-500.0,0.00015129,2]
[344606072,1733604659135,-500.0,0.00015129,2]
[344606074,1733604659146,-2956.62,0.00015129,2]
[344606076,1733604659155,-500.0,0.00015129,2]
[344606078,1733604659165,-500.0,0.00015129,2]
[344606080,1733604659174,-500.0,0.00015129,2]
[344606082,1733604659184,-500.0,0.00015129,2]
[344606085,1733604659194,-656.19,0.00015129,2]
[344606087,1733604659204,-656.19,0.00015129,2]
[344606089,1733604659214,-1133.69,0.00015129,2]
[344606091,1733604659223,-500.0,0.00015129,2]
[344606093,1733604659232,-500.0,0.00015129,2]
[344606095,1733604659241,-500.0,0.00015129,2]
[344606097,1733604659251,-875.0,0.00015129,2]
[344606099,1733604659260,-875.0,0.00015129,2]
[344606100,1733604659269,-2128.53,0.00015129,2]
[344606102,1733604659279,-2178.6,0.00015129,2]
[344606105,1733604659289,-2178.6,0.00015129,2]
[344606107,1733604659298,-500.0,0.00015129,2]
[344606109,1733604659308,-500.0,0.00015129,2]
[344606111,1733604659317,-500.0,0.00015129,2]
[344606113,1733604659326,-500.0,0.00015129,2]
[344606114,1733604659336,-500.0,0.00015129,2]
[344606116,1733604659346,-2631.81,0.00015129,2]
[344606118,1733604659355,-2631.81,0.00015129,2]
[344606120,1733604659365,-949.05,0.00015129,2]
[344606122,1733604659374,-3289.1,0.00015129,2]
[344606124,1733604659383,-949.05,0.00015129,2]
[344606126,1733604659392,-3289.1,0.00015129,2]
[344606128,1733604659402,-604.79,0.00015129,2]
[344606130,1733604659412,-5065.43,0.00015129,2]
[344606132,1733604659422,-4243.12,0.00015129,2]
[344606134,1733604659432,-4243.12,0.00015129,2]
[344606136,1733604659441,-2965.15,0.00015129,2]
[344606138,1733604659451,-2965.15,0.00015129,2]
[344606140,1733604659461,-500.0,0.00015129,2]
[344606142,1733604659470,-431.17,0.00015129,2]
[344606144,1733604659479,-835.74,0.00015129,2]
[344606145,1733604659488,-500.0,0.00015129,2]
[344606146,1733604659497,-500.0,0.00015129,2]
[344606147,1733604659507,-591.71,0.00015129,2]
[344606148,1733604659517,-591.71,0.00015129,2]
[344606149,1733604659526,-2332.16,0.00015129,2]
[344606150,1733604659536,-2332.16,0.00015129,2]
[344606152,1733604659546,-559.68,0.00015129,2]
[344606154,1733604659556,-5330.54,0.00015129,2]
[344606156,1733604659565,-5330.54,0.00015129,2]
[344606158,1733604659574,-4405.59,0.00015129,2]
[344606160,1733604659583,-4405.59,0.00015129,2]
[344606161,1733604659593,-1493.4,0.00015129,2]
[344606164,1733604659602,-1493.4,0.00015129,2]
[344606165,1733604659612,-500.0,0.00015129,2]
[344606167,1733604659621,-500.0,0.00015129,2]
[344606169,1733604659630,-500.0,0.00015129,2]
[344606171,1733604659639,-301.16082243,0.00015129,2]
[344606173,1733604659649,-500.0,0.00015129,2]
[344606175,1733604659659,-2781.09,0.00015129,2]
[344606177,1733604659668,-2781.09,0.00015129,2]
[344606179,1733604659679,-601.08,0.00015129,2]
[344606181,1733604659688,-601.08,0.00015129,2]
[344606183,1733604659698,-500.0,0.00015129,2]
[344606186,1733604659708,-500.0,0.00015129,2]
[344606187,1733604659718,-3981.47,0.00015129,2]
[344606189,1733604659727,-1050.23,0.00015129,2]
[344606191,1733604659736,-1050.23,0.00015129,2]
[344606193,1733604659746,-542.18,0.00015129,2]
[344606195,1733604659756,-500.0,0.00015129,2]
[344606197,1733604659765,-567.4,0.00015129,2]
[344606199,1733604659778,-998.49,0.00015129,2]
[344606201,1733604659787,-998.49,0.00015129,2]
[344606203,1733604659796,-758.11,0.00015129,2]
[344606205,1733604659805,-758.11,0.00015129,2]
[344606207,1733604659814,-9177.02,0.00015129,2]
[344606209,1733604659825,-500.0,0.00015129,2]
[344606211,1733604659835,-2087.49,0.00015129,2]
[344606213,1733604659844,-3552.54,0.00015129,2]
[344606216,1733604659855,-500.0,0.00015129,2]
[344606217,1733604659865,-500.0,0.00015129,2]
[344606219,1733604659874,-416.17,0.00015129,2]
[344606221,1733604659884,-807.32,0.00015129,2]
[344606223,1733604659895,-790.02,0.00015129,2]
[344606225,1733604659904,-19850.0,0.00015129,2]
[344606227,1733604659915,-166.66,0.00015129,2]
[344606229,1733604659924,-200.88507219,0.0001513,5]
[344606231,1733604659934,-1235.46513366,0.0001513,5]
[344606233,1733604659945,-500.0,0.0001513,2]
[344606235,1733604659955,-500.0,0.0001513,2]
[344606237,1733604659964,-500.0,0.0001513,2]
[344606239,1733604659973,-451.12,0.0001513,2]
[344606241,1733604659982,-500.0,0.0001513,2]
[344606243,1733604659992,-500.0,0.0001513,2]
[344606245,1733604660001,-500.0,0.0001513,2]
[344606247,1733604660012,-1533.72,0.0001513,2]
[344606249,1733604660021,-1533.72,0.0001513,2]
[344606251,1733604660030,-1533.72,0.0001513,2]
[344606253,1733604660040,-2740.12,0.0001513,2]
[344606255,1733604660050,-2740.12,0.0001513,2]
[344606257,1733604660059,-500.0,0.0001513,2]
[344606259,1733604660075,-500.0,0.0001513,2]
[344606261,1733604660085,-500.0,0.0001513,2]
[344606263,1733604660095,-735.85,0.0001513,2]
[344606265,1733604660104,-735.85,0.0001513,2]
[344606267,1733604660114,-735.85,0.0001513,2]
[344606269,1733604660123,-500.0,0.0001513,2]
[344606271,1733604660132,-500.0,0.0001513,2]
[344606273,1733604660143,-500.0,0.0001513,2]
[344606275,1733604660152,-1840.76,0.0001513,2]
[344606277,1733604660162,-1840.76,0.0001513,2]
[344606279,1733604660171,-1840.76,0.0001513,2]
[344606281,1733604660181,-1041.66,0.0001513,2]
[344606283,1733604660190,-1041.66,0.0001513,2]
[344606285,1733604660200,-1041.66,0.0001513,2]
[344606287,1733604660209,-500.0,0.0001513,2]
[344606288,1733604660219,-500.0,0.0001513,2]
[344606290,1733604660229,-500.0,0.0001513,2]
[344606293,1733604660239,-622.65,0.0001513,2]